bitfinex/quotes_BTCUSD_20220101
["timestamp","ask_amount","ask_price","bid_price","bid_amount"]
[1641073010242,1.025972,47506.0,47505.0,9.128e-05]
[1641073010443,0.365972,47506.0,47505.0,9.128e-05]
[1641073010642,0.391784,47506.0,47505.0,9.128e-05]
[1641073012291,0.44443,47506.0,47505.0,9.128e-05]
[1641073012691,0.39188893,47506.0,47505.0,9.128e-05]
[1641073012891,0.29188893,47506.0,47505.0,9.128e-05]
[1641073016245,0.80188893,47506.0,47505.0,9.128e-05]
[1641073016445,0.90188893,47506.0,47505.0,9.128e-05]
[1641073017245,0.39188893,47506.0,47505.0,9.128e-05]
[1641073018947,0.29188893,47506.0,47505.0,9.128e-05]
[1641073019248,0.81188893,47506.0,47505.0,9.128e-05]
[1641073019898,0.83385819,47506.0,47505.0,9.128e-05]
[1641073020298,0.83871158,47506.0,47505.0,9.128e-05]
[1641073020503,0.98871158,47506.0,47505.0,9.128e-05]
[1641073020899,0.98871158,47506.0,47495.0,0.00027386]
[1641073021101,0.052654,47501.0,47495.0,0.00027386]
[1641073021300,0.23636434,47500.0,47495.0,0.00027386]
[1641073021504,0.73850467,47499.0,47495.0,0.00027386]
[1641073022501,0.75963896,47499.0,47497.0,0.052654]
[1641073022700,0.338466,47498.0,47497.0,0.10530624]
[1641073023101,0.47626171,47499.0,47497.0,0.10530624]
[1641073023541,0.47626171,47499.0,47498.0,0.00021909]
[1641073023741,0.45512742,47499.0,47498.0,0.00021909]
[1641073023945,0.79359342,47499.0,47498.0,0.00021909]
[1641073024545,0.86532014,47499.0,47498.0,0.00021909]
[1641073024942,0.84624642,47499.0,47493.0,0.00031038]
[1641073025143,0.50778042,47499.0,47493.0,0.00031038]
[1641073025542,0.50778042,47499.0,47492.0,0.00032864]
[1641073025543,0.52625431,47499.0,47492.0,0.00032864]
[1641073026642,0.54502044,47499.0,47492.0,0.00032864]
[1641073026842,0.52654655,47499.0,47492.0,0.00032864]
[1641073027295,0.52654655,47499.0,47492.0,0.05298064]
[1641073027495,0.52654655,47499.0,47492.0,0.04298064]
[1641073027694,0.54828578,47499.0,47493.0,0.00031038]
[1641073027896,0.9506407,47499.0,47493.0,0.00031038]
[1641073028294,0.9506407,47499.0,47492.0,0.00032864]
[1641073028694,0.9506407,47499.0,47495.0,0.05264853]
[1641073028895,0.45512742,47499.0,47495.0,0.052649]
[1641073029097,0.45512742,47499.0,47496.0,0.00025561]
[1641073029297,0.47522427,47499.0,47496.0,0.00025561]
[1641073029498,0.49343759,47499.0,47495.0,0.00027386]
[1641073029897,0.49343759,47499.0,47497.0,0.05264573]
[1641073030099,0.49343759,47499.0,47497.0,0.10529273]
[1641073030299,0.45512742,47499.0,47497.0,0.10529273]
[1641073030699,0.47473415,47499.0,47497.0,0.10529273]
[1641073031544,0.49326361,47499.0,47497.0,0.05264573]
[1641073031743,0.47365688,47499.0,47497.0,0.05264573]
[1641073031945,0.52630588,47499.0,47497.0,0.05264573]
[1641073032547,0.52630588,47499.0,47495.0,0.10557105]
[1641073032746,0.54444633,47499.0,47495.0,0.10557105]
[1641073032946,0.52591687,47499.0,47496.0,0.00025561]
[1641073033545,0.54675439,47499.0,47496.0,0.00025561]
[1641073033744,0.52861394,47499.0,47496.0,0.00025561]
[1641073033947,9.808e-05,47498.0,47494.0,0.05265]
[1641073034146,0.05265,47497.0,47495.0,0.00027386]
[1641073036391,0.05382897,47497.0,47495.0,0.00027386]
[1641073037597,0.05382897,47497.0,47494.0,0.02792386]
[1641073037993,0.052651,47496.0,47494.0,0.02792386]
[1641073038195,0.00117897,47497.0,47494.0,0.00211186]
[1641073039749,0.00117897,47497.0,47495.0,0.05264775]
[1641073039950,0.05382897,47497.0,47495.0,0.10529675]
[1641073040956,0.05382897,47497.0,47492.0,0.10530339]
[1641073041154,0.05382897,47497.0,47491.0,1.22542933]
[1641073041352,0.05382897,47497.0,47491.0,0.6317]
[1641073041552,0.052651,47496.0,47491.0,0.6317]
[1641073042497,0.052651,47496.0,47494.0,0.05265]
[1641073043899,0.052651,47496.0,47494.0,0.10529986]
[1641073044598,9.607e-05,47495.0,47494.0,0.10529986]
[1641073047043,9.607e-05,47495.0,47492.0,0.10530372]
[1641073047642,0.05274807,47495.0,47491.0,1.22542933]
[1641073048044,0.43496176,47494.0,47491.0,1.22542933]
[1641073048244,0.53496176,47494.0,47491.0,1.22542933]
[1641073048845,0.28574308,47492.0,47491.0,1.22542933]
[1641073049044,0.73806254,47492.0,47491.0,1.22542933]
[1641073049245,0.73806254,47492.0,47491.0,1.22550236]
[1641073049545,0.83806254,47492.0,47491.0,0.63177303]
[1641073049795,0.85738649,47492.0,47491.0,0.63177303]
[1641073050498,1.35384549,47492.0,47491.0,0.63177303]
[1641073050695,1.37212415,47492.0,47491.0,0.63177303]
[1641073050896,1.3528002,47492.0,47491.0,0.63177303]
[1641073051701,1.3728979,47492.0,47491.0,0.63177303]
[1641073052497,1.33452154,47492.0,47491.0,0.63177303]
[1641073052697,1.35506873,47492.0,47491.0,0.63177303]
[1641073053562,0.90274927,47492.0,47491.0,0.63177303]
[1641073053768,0.02054719,47492.0,47491.0,0.63177303]
[1641073053960,0.02054719,47492.0,47491.0,0.97023903]
[1641073054361,0.0398513,47492.0,47491.0,0.97023903]
[1641073054762,0.31545694,47492.0,47491.0,0.97023903]
[1641073055265,0.32834989,47492.0,47491.0,0.97023903]
[1641073056465,0.29399218,47492.0,47491.0,0.97023903]
[1641073056863,0.31267757,47492.0,47491.0,0.97023903]
[1641073057065,0.29438428,47492.0,47491.0,0.97023903]
[1641073059109,0.27569889,47492.0,47491.0,0.97023903]
[1641073060119,0.27569889,47492.0,47491.0,0.63177303]
[1641073061545,0.48569889,47492.0,47491.0,0.63177303]
[1641073062546,0.48687798,47492.0,47491.0,0.63177303]
[1641073063449,0.49710403,47492.0,47491.0,0.63177303]
[1641073063846,0.50744447,47492.0,47491.0,0.63177303]
[1641073064048,0.49721842,47492.0,47491.0,0.63177303]
[1641073065494,0.51791607,47492.0,47491.0,0.63177303]
[1641073065694,0.50757563,47492.0,47491.0,0.63177303]
[1641073065894,0.52713856,47492.0,47491.0,0.63177303]
[1641073066098,0.50644091,47492.0,47491.0,0.63177303]
[1641073066893,0.5251489,47492.0,47491.0,0.63177303]
[1641073067094,0.50558597,47492.0,47491.0,0.63177303]
[1641073067895,0.52678741,47492.0,47491.0,0.63177303]
[1641073068096,0.50807942,47492.0,47491.0,0.63177303]
[1641073068949,0.52826566,47492.0,47491.0,0.63177303]
[1641073069149,0.61237322,47492.0,47491.0,0.63177303]
[1641073069750,0.61237322,47492.0,47491.0,0.63130046]
[1641073069947,0.61161292,47492.0,47491.0,0.63130046]
[1641073070951,0.63259634,47492.0,47491.0,0.63130046]
[1641073071153,0.6131704,47492.0,47491.0,0.63130046]
[1641073071850,0.63480074,47492.0,47491.0,0.63130046]
[1641073072051,0.61381732,47492.0,47491.0,0.63130046]
[1641073072899,0.63196644,47492.0,47491.0,0.63130046]
[1641073073099,0.7103361,47492.0,47491.0,0.63130046]
[1641073073898,0.7305269,47492.0,47491.0,0.63130046]
[1641073074101,0.62670599,47492.0,47491.0,0.63130046]
[1641073074698,0.58718698,47492.0,47491.0,0.63130046]
[1641073074900,0.60756142,47492.0,47491.0,0.63130046]
[1641073075100,0.58718698,47492.0,47491.0,0.62793046]
[1641073076050,0.60767234,47492.0,47491.0,0.62793046]
[1641073076851,0.6263923,47492.0,47491.0,0.62793046]
[1641073077853,0.64540392,47492.0,47491.0,0.62793046]
[1641073078052,0.6061986,47492.0,47491.0,0.62793046]
[1641073078854,0.62488705,47492.0,47491.0,0.62793046]
[1641073079054,0.60587543,47492.0,47491.0,0.62793046]
[1641073079256,0.6585343,47492.0,47491.0,0.62785743]
[1641073079453,0.7585343,47492.0,47491.0,0.62785743]
[1641073079908,0.72597079,47492.0,47491.0,0.62785743]
[1641073080107,0.70728234,47492.0,47491.0,0.62785743]
[1641073080408,0.60728234,47492.0,47491.0,0.62785743]
[1641073081509,0.72654278,47492.0,47491.0,0.62785743]
[1641073081710,0.70644742,47492.0,47491.0,0.62785743]
[1641073082010,0.72767534,47492.0,47491.0,0.62785743]
[1641073082210,0.7084149,47492.0,47491.0,0.62785743]
[1641073082910,0.72884922,47492.0,47491.0,0.62785743]
[1641073083114,0.7076213,47492.0,47491.0,0.62785743]
[1641073083968,0.72836533,47492.0,47491.0,0.62785743]
[1641073084770,0.68718698,47492.0,47491.0,0.62785743]
[1641073085068,0.70635264,47492.0,47491.0,0.62785743]
[1641073085968,0.72772165,47492.0,47491.0,0.62785743]
[1641073086167,0.70855599,47492.0,47491.0,0.62785743]
[1641073087601,0.72958599,47492.0,47491.0,0.62785743]
[1641073087801,0.70821698,47492.0,47491.0,0.62785743]
[1641073088001,0.72832835,47492.0,47491.0,0.62785743]
[1641073088203,0.72950743,47492.0,47491.0,0.62785743]
[1641073088404,0.62950743,47492.0,47491.0,0.62785743]
[1641073088704,0.83216639,47492.0,47491.0,0.62785743]
[1641073089102,0.85197599,47492.0,47491.0,0.62785743]
[1641073089303,0.81083462,47492.0,47491.0,0.62785743]
[1641073090105,0.82968465,47492.0,47491.0,0.62785743]
[1641073090305,0.80987505,47492.0,47491.0,0.62785743]
[1641073091147,0.80999245,47492.0,47491.0,0.62785743]
[1641073091547,0.75733349,47492.0,47491.0,0.62785743]
[1641073092046,0.77630089,47492.0,47491.0,0.62785743]
[1641073092247,0.75733346,47492.0,47491.0,0.62785743]
[1641073092947,1.39,47491.0,47486.0,0.59372933]
[1641073093147,1.72384388,47487.0,47486.0,0.59372933]
[1641073093349,1.28651088,47487.0,47482.0,0.59372933]
[1641073093646,1.3350231,47487.0,47482.0,0.59372933]
[1641073093846,1.3350231,47487.0,47483.0,0.0002191]
[1641073094046,0.23651611,47484.0,47483.0,0.0002191]
[1641073094246,1.21997885,47484.0,47483.0,0.0002191]
[1641073094449,1.65442401,47484.0,47481.0,0.00025561]
[1641073094702,1.1471875,47482.0,47481.0,0.00025561]
[1641073094905,1.2633875,47482.0,47481.0,0.00025561]
[1641073095104,1.3633875,47482.0,47481.0,0.00025561]
[1641073095300,0.8718535,47482.0,47481.0,0.00025561]
[1641073095501,0.9718535,47482.0,47480.0,0.00027387]
[1641073095702,0.43751728,47481.0,47480.0,0.00027387]
[1641073096102,0.53751728,47481.0,47477.0,0.00032864]
[1641073096302,0.53760166,47481.0,47477.0,0.00032864]
[1641073096501,0.53760166,47481.0,47477.0,0.59405797]
[1641073096903,0.54294466,47481.0,47478.0,0.00031039]
[1641073097102,0.55570988,47481.0,47478.0,0.00031039]
[1641073098101,0.57443051,47481.0,47478.0,0.00031039]
[1641073098301,0.55632229,47481.0,47478.0,0.00031039]
[1641073099061,0.05267,47480.0,47478.0,0.00031039]
[1641073099657,0.05217194,47480.0,47478.0,0.00031039]
[1641073100159,0.05217194,47480.0,47478.0,0.59403972]
[1641073100358,0.05217194,47480.0,47478.0,0.00031039]
[1641073100557,0.05217194,47480.0,47479.0,0.00029213]
[1641073100759,0.70599833,47480.0,47478.0,0.59403972]
[1641073100961,1.06,47479.0,47476.0,0.71149146]
[1641073101158,0.00127056,47477.0,47476.0,0.71149146]
[1641073101358,0.04347056,47477.0,47475.0,0.71149146]
[1641073101557,1.64746234,47476.0,47475.0,0.71149146]
[1641073101760,1.64746234,47476.0,47469.0,0.11993341]
[1641073101761,1.73966234,47476.0,47469.0,0.11993341]
[1641073101959,0.78077981,47476.0,47469.0,0.11993341]
[1641073102202,0.0539615,47472.0,47470.0,0.00014606]
[1641073102404,0.0961615,47472.0,47470.0,0.00014606]
[1641073103204,0.48516922,47471.0,47470.0,0.00014606]
[1641073103407,0.87632222,47471.0,47470.0,0.00014606]
[1641073103606,0.97632222,47471.0,47470.0,0.00014606]
[1641073104106,0.99793309,47471.0,47470.0,0.00014606]
[1641073105107,1.01760256,47471.0,47470.0,0.00014606]
[1641073105508,0.99599169,47471.0,47470.0,0.00014606]
[1641073106850,1.01528876,47471.0,47470.0,0.00014606]
[1641073107051,0.99561929,47471.0,47470.0,0.00014606]
[1641073107251,0.99524946,47471.0,47470.0,0.00014606]
[1641073107551,0.41008024,47471.0,47470.0,0.00014606]
[1641073107958,0.07161424,47471.0,47470.0,0.00014606]
[1641073108452,0.01892724,47471.0,47470.0,0.00014606]
[1641073108853,0.04005555,47471.0,47470.0,0.00014606]
[1641073109053,0.02120462,47471.0,47470.0,0.00014606]
[1641073109457,7.631e-05,47471.0,47470.0,0.00014606]
[1641073113012,0.05275231,47471.0,47470.0,0.00014606]
[1641073121954,0.02275231,47471.0,47470.0,0.00014606]
[1641073122356,0.0011796,47472.0,47470.0,0.00014606]
[1641073122556,0.0011796,47472.0,47471.0,0.338466]
[1641073122955,0.0011796,47472.0,47471.0,0.3385938]
[1641073126903,0.0011796,47472.0,47471.0,0.0001278]
[1641073141912,0.0011796,47472.0,47471.0,0.3385938]
[1641073142813,0.0011796,47472.0,47471.0,0.93485065]
[1641073143473,0.0011796,47472.0,47471.0,0.59638465]
[1641073143765,0.0011796,47472.0,47471.0,0.0001278]
[1641073145764,0.0011796,47472.0,47471.0,0.59638465]
[1641073146164,0.0011796,47472.0,47471.0,0.0001278]
[1641073146367,0.0011796,47472.0,47471.0,0.3385938]
[1641073146664,0.00046211,47472.0,47471.0,0.3385938]
[1641073146863,0.05265616,47473.0,47471.0,0.0001278]
[1641073147309,0.05265616,47473.0,47471.0,0.59638465]
[1641073147713,0.05265616,47473.0,47472.0,0.00010954]
[1641073149314,0.05265616,47473.0,47471.0,0.0001278]
[1641073150518,0.05265616,47473.0,47471.0,0.59638465]
[1641073150960,0.05265616,47473.0,47472.0,0.00010954]
[1641073151467,0.05265616,47473.0,47471.0,0.59638465]
[1641073151860,0.05265616,47473.0,47472.0,0.00010954]
[1641073153062,0.05265616,47473.0,47471.0,0.0001278]
[1641073157616,0.4573041,47473.0,47471.0,0.0001278]
[1641073158115,0.5573041,47473.0,47471.0,0.0001278]
[1641073158557,7.058e-05,47472.0,47471.0,0.0001278]
[1641073159760,0.43735798,47472.0,47471.0,0.0001278]
[1641073160057,0.10007058,47472.0,47471.0,0.0001278]
[1641073160657,0.11952996,47472.0,47471.0,0.0001278]
[1641073161259,0.01952996,47472.0,47471.0,0.0001278]
[1641073161960,7.058e-05,47472.0,47471.0,0.0001278]
[1641073165315,0.43843061,47472.0,47471.0,0.0001278]
[1641073165518,0.53843061,47472.0,47471.0,0.0001278]
[1641073166168,0.87689661,47472.0,47471.0,0.0001278]
[1641073166769,0.89751994,47472.0,47471.0,0.0001278]
[1641073167568,0.91683007,47472.0,47471.0,0.0001278]
[1641073168569,0.93864822,47472.0,47471.0,0.0001278]
[1641073169824,0.95922733,47472.0,47471.0,0.0001278]
[1641073170026,0.89747572,47472.0,47471.0,0.0001278]
[1641073170626,0.91586666,47472.0,47471.0,0.0001278]
[1641073170826,0.89528755,47472.0,47471.0,0.0001278]
[1641073171628,0.91638397,47472.0,47471.0,0.0001278]
[1641073171828,0.89799303,47472.0,47471.0,0.0001278]
[1641073172730,0.91764241,47472.0,47471.0,0.0001278]
[1641073172930,0.89654599,47472.0,47471.0,0.0001278]
[1641073173330,0.50505518,47471.0,47469.0,0.1072334]
[1641073173567,0.052685,47470.0,47469.0,0.1072334]
[1641073178519,0.48780511,47470.0,47469.0,0.1072334]
[1641073178719,0.58780511,47470.0,47469.0,0.1072334]
[1641073179725,0.60709703,47470.0,47469.0,0.1072334]
[1641073180120,0.94556303,47470.0,47469.0,0.1072334]
[1641073181352,0.96659305,47470.0,47469.0,0.1072334]
[1641073181553,0.94730113,47470.0,47469.0,0.1072334]
[1641073181754,0.96776385,47470.0,47469.0,0.1072334]
[1641073182054,0.94673383,47470.0,47469.0,0.1072334]
[1641073182257,0.51161372,47470.0,47469.0,0.1072334]
[1641073182856,0.53350151,47470.0,47469.0,0.1072334]
[1641073183055,0.51303879,47470.0,47469.0,0.1072334]
[1641073183859,0.50951923,47470.0,47469.0,0.1072334]
[1641073184719,0.73985024,47470.0,47469.0,0.1072334]
[1641073184922,0.72148201,47470.0,47469.0,0.1072334]
[1641073185321,1.16433471,47470.0,47469.0,0.1072334]
[1641073185722,1.18383456,47470.0,47469.0,0.1072334]
[1641073185921,1.16350355,47470.0,47469.0,0.1072334]
[1641073186720,1.18422538,47470.0,47469.0,0.1072334]
[1641073186921,1.16472553,47470.0,47469.0,0.1072334]
[1641073187821,1.18397571,47470.0,47469.0,0.1072334]
[1641073188022,1.16325388,47470.0,47469.0,0.1072334]
[1641073188877,1.18281206,47470.0,47469.0,0.1072334]
[1641073189076,1.16356188,47470.0,47469.0,0.1072334]
[1641073189378,0.72070918,47470.0,47469.0,0.1072334]
[1641073189777,0.74121347,47470.0,47469.0,0.1072334]
[1641073189979,0.72165529,47470.0,47469.0,0.1072334]
[1641073190380,0.62165529,47470.0,47469.0,0.1072334]
[1641073190783,0.64315888,47470.0,47469.0,0.1072334]
[1641073190979,0.62265459,47470.0,47469.0,0.1072334]
[1641073191777,0.64410055,47470.0,47469.0,0.1072334]
[1641073191977,0.62259696,47470.0,47469.0,0.1072334]
[1641073192203,1.07017344,47470.0,47469.0,0.1072334]
[1641073192603,0.62259696,47470.0,47469.0,0.1072334]
[1641073193004,0.6438696,47470.0,47469.0,0.1072334]
[1641073193808,0.262685,47470.0,47469.0,0.1072334]
[1641073194006,0.28253868,47470.0,47469.0,0.1072334]
[1641073194407,0.262685,47470.0,47469.0,0.1072334]
[1641073202015,0.312685,47470.0,47469.0,0.1072334]
[1641073202417,0.412685,47470.0,47469.0,0.1072334]
[1641073203019,1.0227571,47470.0,47469.0,0.1072334]
[1641073203219,1.3612231,47470.0,47469.0,0.1072334]
[1641073203962,1.38029285,47470.0,47469.0,0.1072334]
[1641073204464,0.79029285,47470.0,47469.0,0.1072334]
[1641073204662,0.751151,47470.0,47469.0,0.1072334]
[1641073204864,0.76921668,47470.0,47469.0,0.1072334]
[1641073205868,0.78776775,47470.0,47469.0,0.1072334]
[1641073206069,0.76970207,47470.0,47469.0,0.1072334]
[1641073206867,0.7898143,47470.0,47469.0,0.1072334]
[1641073207067,0.77126323,47470.0,47469.0,0.1072334]
[1641073208012,0.79244665,47470.0,47469.0,0.1072334]
[1641073208212,0.77233442,47470.0,47469.0,0.1072334]
[1641073209014,0.79177825,47470.0,47469.0,0.1072334]
[1641073209615,0.64177825,47470.0,47469.0,0.1072334]
[1641073210117,0.62122257,47470.0,47469.0,0.1072334]
[1641073210519,0.28275657,47470.0,47469.0,0.1072334]
[1641073210720,0.28275657,47470.0,47469.0,0.54476406]
[1641073210954,0.28275657,47470.0,47469.0,0.88323006]
[1641073210955,0.30272653,47470.0,47469.0,0.88323006]
[1641073211357,0.28265496,47470.0,47469.0,0.88323006]
[1641073212156,0.262685,47470.0,47469.0,0.88323006]
[1641073213356,0.262685,47470.0,47469.0,1.47948691]
[1641073215408,0.262685,47470.0,47469.0,0.88323006]
[1641073219771,0.262685,47470.0,47469.0,0.78323006]
[1641073221471,0.26386463,47470.0,47469.0,0.78323006]
[1641073221674,0.2639332,47470.0,47469.0,0.78323006]
[1641073223417,0.2639332,47470.0,47469.0,0.3456994]
[1641073224014,0.2639332,47470.0,47469.0,0.75843122]
[1641073225416,0.2639332,47470.0,47469.0,0.73843122]
[1641073226077,0.2639332,47470.0,47469.0,0.3256994]
[1641073227776,0.2639332,47470.0,47469.0,0.73725892]
[1641073230209,0.2639332,47470.0,47469.0,0.3256994]
[1641073230610,0.2639332,47470.0,47469.0,0.73733112]
[1641073230810,0.262685,47470.0,47469.0,0.73733112]
[1641073231109,0.262685,47470.0,47469.0,0.73529164]
[1641073231511,0.262685,47470.0,47469.0,0.3256994]
[1641073231711,0.262685,47470.0,47469.0,0.73486962]
[1641073232615,0.21006857,47470.0,47469.0,0.73486962]
[1641073233016,0.21006857,47470.0,47469.0,0.92706962]
[1641073233214,0.02947611,47474.0,47473.0,3.24870571]
[1641073233468,0.00908189,47474.0,47473.0,4.04518084]
[1641073233661,0.00661894,47475.0,47474.0,1.39]
[1641073233860,0.00661894,47475.0,47474.0,2.35536009]
[1641073234059,0.00669197,47475.0,47474.0,3.08857891]
[1641073234462,7.303e-05,47475.0,47474.0,3.08857891]
[1641073234663,7.303e-05,47475.0,47474.0,4.20557891]
[1641073234862,7.303e-05,47475.0,47474.0,3.18857891]
[1641073235066,7.303e-05,47475.0,47474.0,2.98857891]
[1641073235264,7.303e-05,47475.0,47474.0,4.18594075]
[1641073236061,0.21007303,47475.0,47474.0,4.18594075]
[1641073236665,0.21007303,47475.0,47474.0,5.30294075]
[1641073236864,0.21007303,47475.0,47474.0,4.18594075]
[1641073240023,0.21007303,47475.0,47474.0,2.98857891]
[1641073240223,0.21007303,47475.0,47474.0,3.58050521]
[1641073240723,0.20007303,47475.0,47474.0,3.58050521]
[1641073243064,0.2001394,47475.0,47474.0,3.58050521]
[1641073244903,0.2001394,47475.0,47474.0,3.63050521]
[1641073245908,0.2001394,47475.0,47474.0,3.03857891]
[1641073247908,0.2001394,47475.0,47474.0,2.56802451]
[1641073251590,0.2001394,47475.0,47474.0,3.68502451]
[1641073252222,0.2001394,47475.0,47474.0,3.78502451]
[1641073252425,0.2001394,47475.0,47474.0,2.66802451]
[1641073252823,0.2001394,47475.0,47474.0,2.51802451]
[1641073254125,0.2001394,47475.0,47474.0,2.61802451]
[1641073255325,0.2001394,47475.0,47474.0,2.56802451]
[1641073255727,0.2001394,47475.0,47474.0,1.012727]
[1641073255979,0.2001394,47475.0,47474.0,0.970527]
[1641073257176,0.63164284,47475.0,47474.0,0.63192]
[1641073257672,0.7901394,47475.0,47474.0,0.63192]
[1641073257874,0.8414113,47475.0,47474.0,0.63192]
[1641073258274,0.85942705,47475.0,47474.0,0.63192]
[1641073258474,1.19803405,47475.0,47474.0,0.63192]
[1641073259474,1.198424,47475.0,47474.0,0.63192]
[1641073260109,1.64049008,47475.0,47474.0,0.63192]
[1641073260310,1.66134423,47475.0,47474.0,0.63192]
[1641073260511,1.64293853,47475.0,47474.0,0.63192]
[1641073261407,1.66377971,47475.0,47474.0,0.63192]
[1641073261609,1.64292556,47475.0,47474.0,0.63192]
[1641073262510,1.6430323,47475.0,47474.0,0.63192]
[1641073263475,1.66437585,47475.0,47474.0,0.63192]
[1641073263662,1.64342793,47475.0,47474.0,0.63192]
[1641073264464,1.66422982,47475.0,47474.0,0.63192]
[1641073264664,1.64288627,47475.0,47474.0,0.63192]
[1641073265465,1.66365431,47475.0,47474.0,0.63192]
[1641073265666,1.15285242,47475.0,47474.0,0.63192]
[1641073266466,1.17302022,47475.0,47474.0,0.63192]
[1641073266766,1.15225218,47475.0,47474.0,0.63192]
[1641073267405,1.17215031,47475.0,47474.0,0.63192]
[1641073267605,1.15198251,47475.0,47474.0,0.63192]
[1641073267807,1.00198251,47475.0,47474.0,0.63192]
[1641073268007,0.55864453,47475.0,47474.0,0.63192]
[1641073268408,0.57679982,47475.0,47474.0,0.63192]
[1641073268610,0.55690169,47475.0,47474.0,0.63192]
[1641073269408,0.67616451,47475.0,47474.0,0.63192]
[1641073269808,0.6387464,47475.0,47474.0,0.63192]
[1641073270409,0.66062547,47475.0,47474.0,0.63192]
[1641073271269,1.04062547,47475.0,47474.0,0.63192]
[1641073271467,1.0623449,47475.0,47474.0,0.63192]
[1641073271663,1.04046583,47475.0,47474.0,0.63192]
[1641073271863,0.66046583,47475.0,47474.0,0.63192]
[1641073272064,1.13892369,47475.0,47474.0,0.63192]
[1641073272364,1.15889437,47475.0,47474.0,0.63192]
[1641073272566,1.13717494,47475.0,47474.0,0.63192]
[1641073273466,1.1554767,47475.0,47474.0,0.63192]
[1641073273666,1.13550602,47475.0,47474.0,0.63192]
[1641073274470,1.15716703,47475.0,47474.0,0.63192]
[1641073274720,1.13886527,47475.0,47474.0,0.63192]
[1641073275520,1.15906298,47475.0,47474.0,0.63192]
[1641073275719,1.13740197,47475.0,47474.0,0.63192]
[1641073276523,1.15751252,47475.0,47474.0,0.63192]
[1641073276719,1.13731481,47475.0,47474.0,0.63192]
[1641073278021,1.15918222,47475.0,47474.0,0.63192]
[1641073278221,1.13907167,47475.0,47474.0,0.63192]
[1641073278470,1.15900157,47475.0,47474.0,0.63192]
[1641073279470,1.17768801,47475.0,47474.0,0.63192]
[1641073279672,0.74923015,47475.0,47474.0,0.63192]
[1641073280274,0.69923015,47475.0,47474.0,0.63192]
[1641073280572,0.71880196,47475.0,47474.0,0.63192]
[1641073280777,0.65831821,47475.0,47474.0,0.63192]
[1641073281577,0.66051844,47475.0,47474.0,0.63192]
[1641073282615,0.66072816,47475.0,47474.0,0.63192]
[1641073283616,0.65776649,47475.0,47474.0,0.63192]
[1641073284617,0.6598749,47475.0,47474.0,0.63192]
[1641073285719,0.65815888,47475.0,47474.0,0.63192]
[1641073286564,0.67734531,47475.0,47474.0,0.63192]
[1641073286766,0.65793283,47475.0,47474.0,0.63192]
[1641073287165,0.65793283,47475.0,47474.0,0.63282347]
[1641073287565,0.67847753,47475.0,47474.0,0.63282347]
[1641073287768,0.6592911,47475.0,47474.0,0.63282347]
[1641073288569,0.68037599,47475.0,47474.0,0.63282347]
[1641073288770,0.65983129,47475.0,47474.0,0.63282347]
[1641073289575,0.67873783,47475.0,47474.0,0.63282347]
[1641073289847,0.65765294,47475.0,47474.0,0.63282347]
[1641073290750,0.66000866,47475.0,47474.0,0.63282347]
[1641073291551,0.33998151,47475.0,47474.0,0.63282347]
[1641073291750,0.31871925,47475.0,47474.0,0.63282347]
[1641073291954,0.21871925,47475.0,47474.0,0.63282347]
[1641073292756,0.2001394,47475.0,47474.0,0.63282347]
[1641073294677,0.2501394,47475.0,47474.0,0.63282347]
[1641073297076,0.6301394,47475.0,47474.0,0.63282347]
[1641073297514,0.7301394,47475.0,47474.0,0.63282347]
[1641073298114,1.0687464,47475.0,47474.0,0.63282347]
[1641073298815,1.09002138,47475.0,47474.0,0.63282347]
[1641073299614,1.10868211,47475.0,47474.0,0.63282347]
[1641073299816,0.70740713,47475.0,47474.0,0.63282347]
[1641073300614,0.72640025,47475.0,47474.0,0.63282347]
[1641073300817,0.70773952,47475.0,47474.0,0.63282347]
[1641073301863,0.70992962,47475.0,47474.0,0.63282347]
[1641073302262,0.65992962,47475.0,47474.0,0.63282347]
[1641073302466,0.32132262,47475.0,47474.0,0.63282347]
[1641073302665,0.2419347,47475.0,47474.0,0.63282347]
[1641073302864,0.32075148,47475.0,47474.0,0.63282347]
[1641073303667,0.34123314,47475.0,47474.0,0.63282347]
[1641073303867,0.32062106,47475.0,47474.0,0.63282347]
[1641073304717,0.33873895,47475.0,47474.0,0.63282347]
[1641073304921,0.31825729,47475.0,47474.0,0.63282347]
[1641073305319,0.21825729,47475.0,47474.0,0.63282347]
[1641073305523,0.31825729,47475.0,47474.0,0.63282347]
[1641073305721,0.3378729,47475.0,47474.0,0.63282347]
[1641073305924,0.31975501,47475.0,47474.0,0.63282347]
[1641073306723,0.33790235,47475.0,47474.0,0.63282347]
[1641073306922,0.31828674,47475.0,47474.0,0.63282347]
[1641073307727,0.23840711,47475.0,47474.0,0.63282347]
[1641073307924,0.32025977,47475.0,47474.0,0.63282347]
[1641073308770,0.33957643,47475.0,47474.0,0.63282347]
[1641073308972,0.21945606,47475.0,47474.0,0.63282347]
[1641073310671,0.2001394,47475.0,47474.0,0.63282347]
[1641073316569,0.2001394,47475.0,47474.0,0.97143047]
[1641073321018,0.2001394,47475.0,47474.0,0.63282347]
[1641073321815,0.5601394,47475.0,47474.0,0.63282347]
[1641073322016,0.2001394,47475.0,47474.0,0.63282347]
[1641073322214,0.4054914,47475.0,47474.0,0.63282347]
[1641073322815,0.42541937,47475.0,47474.0,0.63282347]
[1641073323969,0.42471842,47475.0,47474.0,0.63282347]
[1641073324169,1.20772938,47474.0,47466.0,0.04478023]
[1641073324370,1.20772938,47474.0,47451.0,0.20436375]
[1641073324371,0.26752228,47448.0,47445.0,1.1897]
[1641073324569,0.62,47447.0,47446.0,0.21825097]
[1641073324768,0.62,47447.0,47438.0,2.15781176]
[1641073324769,0.09777594,47446.0,47438.0,0.03093483]
[1641073324971,0.00124832,47442.0,47438.0,0.03093483]
[1641073325369,0.00124832,47442.0,47441.0,0.00162077]
[1641073325570,0.11210832,47442.0,47441.0,0.00162077]
[1641073325772,0.16482332,47442.0,47441.0,0.00162077]
[1641073326771,0.13907332,47442.0,47441.0,0.00162077]
[1641073327723,0.62907332,47442.0,47441.0,0.00162077]
[1641073328124,0.23907332,47442.0,47441.0,0.00162077]
[1641073328327,0.94458396,47442.0,47441.0,0.00162077]
[1641073328531,0.00122819,47437.0,47432.0,0.0090566]
[1641073328727,1.493651,47436.0,47432.0,0.0090566]
[1641073329124,1.593651,47436.0,47432.0,0.0090566]
[1641073329327,0.391451,47436.0,47432.0,0.3362569]
[1641073329527,0.052725,47436.0,47433.0,0.46331064]
[1641073329724,0.052707,47439.0,47435.0,0.344226]
[1641073329925,0.052707,47439.0,47436.0,0.46331064]
[1641073330126,0.05851513,47445.0,47437.0,0.206414]
[1641073330325,0.05851513,47445.0,47436.0,9.129e-05]
[1641073330527,0.05851513,47445.0,47440.0,0.24814833]
[1641073330728,0.09777594,47446.0,47445.0,1.84217543]
[1641073330973,0.09777594,47446.0,47445.0,0.65848043]
[1641073331368,0.09777594,47446.0,47445.0,1.29079043]
[1641073331566,0.09777594,47446.0,47445.0,1.44079043]
[1641073331765,0.09777594,47446.0,47445.0,1.29079043]
[1641073331967,0.09777594,47446.0,47445.0,0.838615]
[1641073332767,0.09777594,47446.0,47445.0,1.26711338]